bitfinex/quotes_SOLUSD_20220207
["timestamp","ask_amount","ask_price","bid_price","bid_amount"]
[1644258172361,48.39782691,120.65,120.57,97.28701307]
[1644258172560,48.39782691,120.65,120.57,98.45979712]
[1644258172762,48.39782691,120.65,120.57,98.70979712]
[1644258172960,48.39782691,120.65,120.57,111.14509712]
[1644258172961,11.9,120.65,120.57,111.14509712]
[1644258173162,6.0,120.66,120.58,1.9570151]
[1644258173361,11.9,120.67,120.59,1.17278405]
[1644258173560,23.7699,120.7,120.59,1.19678405]
[1644258173760,11.9,120.69,120.6,0.024]
[1644258173960,35.81979746,120.68,120.6,17.84498855]
[1644258174262,53.96979746,120.68,120.61,0.024]
[1644258174461,56.11662603,120.68,120.61,0.024]
[1644258175263,68.55242603,120.68,120.61,0.024]
[1644258178064,66.40559746,120.68,120.61,0.024]
[1644258178366,66.15559746,120.68,120.61,0.024]
[1644258179764,66.40559746,120.68,120.61,0.024]
[1644258182667,67.58247318,120.68,120.61,0.024]
[1644258182868,66.40559746,120.68,120.61,0.024]
[1644258183066,53.96979746,120.68,120.61,0.024]
[1644258183267,17.9,120.68,120.61,0.024]
[1644258183468,11.9,120.7,120.61,1.9810151]
[1644258183667,1.17687572,120.71,120.62,4.168]
[1644258183866,1.17687572,120.72,120.62,5.34078405]
[1644258184067,6.0,120.72,120.63,1.9570151]
[1644258184265,41.339716,120.72,120.63,46.5547198]
[1644258184668,13.07687572,120.73,120.64,1.9570151]
[1644258184867,11.9,120.73,120.64,2.2070151]
[1644258185066,2.37495602,120.77,120.64,9.37979915]
[1644258185067,1.17687572,120.75,120.64,9.37979915]
[1644258185268,0.03712668,120.77,120.65,6.0990151]
[1644258185269,1.17687572,120.76,120.65,6.0990151]
[1644258185472,1.2140024,120.77,120.65,17.9990151]
[1644258185669,1.17687572,120.77,120.66,23.79065352]
[1644258185872,0.03712668,120.76,120.67,4.141]
[1644258186069,0.03712668,120.78,120.68,5.0]
[1644258186270,0.03712668,120.77,120.69,4.141]
[1644258186472,0.03712668,120.79,120.69,4.141]
[1644258186668,0.03712668,120.79,120.71,12.4206]
[1644258186868,0.03712668,120.79,120.72,44.3477047]
[1644258187069,38.50927016,120.8,120.72,44.3477047]
[1644258187371,11.93712668,120.81,120.72,44.5977047]
[1644258187568,0.03712668,120.8,120.73,1.9570151]
[1644258187768,0.03712668,120.82,120.73,2.2070151]
[1644258188173,0.03712668,120.82,120.74,1.95684936]
[1644258188372,44.66917656,120.82,120.75,21.83363842]
[1644258188570,6.0,120.82,120.75,21.83363842]
[1644258188770,0.03712668,120.83,120.75,22.08363842]
[1644258188972,6.0,120.83,120.75,22.08363842]
[1644258189171,6.0,120.83,120.75,28.08363842]
[1644258189372,0.03712668,120.84,120.75,22.08363842]
[1644258189572,34.79344331,120.84,120.75,22.08363842]
[1644258189972,40.79344331,120.84,120.75,34.50143842]
[1644258190376,40.79344331,120.84,120.75,40.50143842]
[1644258190781,41.04344331,120.84,120.75,40.50143842]
[1644258190976,41.04344331,120.84,120.75,34.50143842]
[1644258191377,40.79344331,120.84,120.75,34.50143842]
[1644258192276,40.79344331,120.84,120.75,36.45828778]
[1644258193380,40.75631663,120.84,120.75,36.45828778]
[1644258194200,40.75631663,120.84,120.75,42.45828778]
[1644258194577,40.75631663,120.84,120.75,36.45828778]
[1644258197084,40.75631663,120.84,120.75,20.37464936]
[1644258197284,40.75631663,120.84,120.73,41.3884]
[1644258197285,52.90631663,120.84,120.73,14.37634936]
[1644258197483,0.03712668,120.83,120.71,6.09584936]
[1644258197685,11.9,120.82,120.71,4.139]
[1644258197884,0.03712668,120.81,120.71,4.139]
[1644258198084,11.9,120.8,120.71,50.66713557]
[1644258198283,40.6487161,120.79,120.71,50.66713557]
[1644258198486,11.9,120.78,120.71,50.66713557]
[1644258198685,47.37667825,120.77,120.71,46.52813557]
[1644258199184,47.37667825,120.77,120.71,46.77813557]
[1644258199393,47.37667825,120.77,120.71,46.52813557]
[1644258199591,47.37667825,120.77,120.67,4.14]
[1644258199791,47.66380493,120.77,120.67,18.4254]
[1644258199991,11.9,120.76,120.65,49.7185]
[1644258200191,17.9,120.76,120.63,28.6517]
[1644258200393,18.15,120.76,120.63,30.60635]
[1644258200791,39.59122507,120.75,120.64,37.26977745]
[1644258200996,51.49122507,120.75,120.64,37.26977745]
[1644258201191,57.74122507,120.75,120.64,37.51977745]
[1644258201397,68.37629737,120.75,120.64,49.94847745]
[1644258201916,68.37629737,120.75,120.64,37.51977745]
[1644258204318,68.37629737,120.75,120.64,0.25]
[1644258204518,68.37629737,120.75,120.62,0.024]
[1644258204723,4.143,120.74,120.62,0.024]
[1644258204923,12.433,120.71,120.62,0.024]
[1644258205123,30.333,120.71,120.62,0.024]
[1644258205419,48.06987986,120.7,120.62,42.06785145]
[1644258205619,54.06987986,120.7,120.62,42.04385145]
[1644258205823,54.31987986,120.7,120.62,42.04385145]
[1644258206221,6.0,120.7,120.62,42.04385145]
[1644258206423,6.25,120.7,120.62,42.04385145]
[1644258206623,0.25,120.7,120.62,42.04385145]
[1644258206823,6.25,120.7,120.62,42.29385145]
[1644258207023,6.25,120.7,120.62,42.04385145]
[1644258207224,38.81293547,120.69,120.62,42.04385145]
[1644258207629,45.06293547,120.69,120.62,42.04385145]
[1644258208020,6.25,120.69,120.62,42.04385145]
[1644258208421,6.0,120.69,120.62,42.04385145]
[1644258208620,6.0,120.69,120.62,42.29385145]
[1644258208823,17.9,120.72,120.62,42.29385145]
[1644258209021,36.88704156,120.71,120.63,0.024]
[1644258209220,43.13704156,120.71,120.62,42.29385145]
[1644258210624,43.13704156,120.71,120.62,42.31785145]
[1644258211925,6.25,120.71,120.62,42.31785145]
[1644258212131,6.0,120.71,120.62,54.74915145]
[1644258212326,6.0,120.72,120.62,54.72515145]
[1644258212525,12.829,120.73,120.63,0.024]
[1644258212725,18.829,120.73,120.63,0.024]
[1644258212925,12.829,120.73,120.63,0.024]
[1644258213226,12.829,120.73,120.64,37.83141937]
[1644258213626,45.35362234,120.72,120.64,40.0279978]
[1644258213827,45.35362234,120.72,120.64,38.08141937]
[1644258214025,12.829,120.73,120.64,38.08141937]
[1644258214226,12.829,120.73,120.64,50.50971937]
[1644258215126,13.079,120.73,120.64,50.50971937]
[1644258215926,13.079,120.73,120.64,50.25971937]
[1644258216128,47.11483031,120.72,120.63,0.024]
[1644258216329,53.36483031,120.72,120.6,4.167]
[1644258216525,53.36483031,120.72,120.63,0.024]
[1644258216726,53.36483031,120.72,120.61,0.024]
[1644258217829,65.79673031,120.72,120.61,12.4564]
[1644258218042,65.79673031,120.72,120.62,27.85227454]
[1644258218327,65.79673031,120.72,120.62,28.10227454]
[1644258219929,65.79673031,120.72,120.62,40.53417454]
[1644258221634,11.9,120.71,120.62,0.024]
[1644258221831,12.4347,120.7,120.6,12.4572]
[1644258222133,18.4347,120.7,120.61,0.024]
[1644258222332,18.6847,120.7,120.61,0.024]
[1644258222531,63.74199235,120.7,120.61,36.33749916]
[1644258222730,63.74199235,120.7,120.62,0.024]
[1644258223932,51.30729235,120.7,120.62,0.024]
[1644258224234,46.76477572,120.74,120.62,0.024]
[1644258224235,4.143,120.74,120.62,0.024]
[1644258224434,5.31987572,120.76,120.63,1.94510706]
[1644258224633,24.68257572,120.77,120.64,16.042]
[1644258224832,23.5057,120.77,120.64,16.292]
[1644258225032,37.19912402,120.76,120.66,12.4267]
[1644258225332,37.19912402,120.76,120.66,12.6767]
[1644258225542,37.19912402,120.76,120.66,0.25]
[1644258225733,43.44912402,120.76,120.66,0.25]
[1644258226135,43.19912402,120.76,120.66,0.25]
[1644258226334,55.62752402,120.76,120.66,39.5080292]
[1644258226534,55.62752402,120.76,120.66,39.2580292]
[1644258226737,55.62752402,120.76,120.66,39.5080292]
[1644258226935,55.62752402,120.76,120.66,12.6778]
[1644258227535,55.87752402,120.76,120.66,12.6778]
[1644258227961,55.87752402,120.76,120.66,53.72289057]
[1644258228337,55.87752402,120.76,120.66,12.4278]
[1644258228539,14.04682857,120.75,120.63,11.31478405]
[1644258228737,12.4329,120.72,120.63,5.31478405]
[1644258228937,11.9,120.71,120.63,4.142]
[1644258229136,17.9,120.71,120.62,0.024]
[1644258229340,44.41584171,120.69,120.62,0.024]
[1644258229738,52.81267028,120.69,120.62,0.024]
[1644258229938,52.81267028,120.69,120.61,44.81476285]
[1644258230137,52.81267028,120.69,120.61,0.25]
[1644258230340,65.24817028,120.69,120.6,0.024]
[1644258230739,65.24817028,120.69,120.58,1.44678405]
[1644258231239,63.10134171,120.69,120.59,47.17610818]
[1644258231441,63.10134171,120.69,120.6,0.024]
[1644258232443,62.85134171,120.69,120.6,0.024]
[1644258233843,50.41584171,120.69,120.6,0.024]
[1644258234444,50.66584171,120.69,120.6,0.024]
[1644258235042,50.41584171,120.69,120.6,12.4579]
[1644258235242,50.41584171,120.69,120.61,20.84716264]
[1644258235665,50.41584171,120.69,120.61,21.09716264]
[1644258235965,6.0,120.69,120.61,21.09716264]
[1644258236165,52.3064,120.71,120.61,39.52986264]
[1644258236567,52.3064,120.71,120.62,0.024]
[1644258237072,6.0,120.71,120.62,12.4556]
[1644258237270,35.9198,120.74,120.63,37.72452276]
[1644258237468,1.17687572,120.75,120.63,37.72452276]
[1644258237672,1.17687572,120.75,120.64,1.94510706]
[1644258237968,62.55297572,120.76,120.64,1.94510706]
[1644258238169,49.4761,120.76,120.64,6.25]
[1644258238370,41.11783082,120.75,120.65,30.25074806]
[1644258238569,47.11783082,120.75,120.65,30.25074806]
[1644258238770,47.11783082,120.75,120.65,30.50074806]
[1644258238969,47.11783082,120.75,120.66,12.4264]
[1644258239170,47.11783082,120.75,120.67,37.72452276]
[1644258239673,6.0,120.75,120.67,37.97452276]
[1644258240071,0.03712668,120.77,120.67,58.35182828]
[1644258240472,6.0,120.78,120.68,11.9]
[1644258240671,0.03712668,120.77,120.69,30.25074806]
[1644258240871,48.59414746,120.78,120.69,30.25074806]
[1644258241174,54.59414746,120.78,120.69,32.45155358]
[1644258241770,54.59414746,120.78,120.71,12.422]
[1644258241970,54.59414746,120.78,120.71,50.14652276]
[1644258242172,54.59414746,120.78,120.71,0.25]
[1644258242374,66.49414746,120.78,120.67,1.95080552]
[1644258242573,0.03712668,120.77,120.69,0.25]
[1644258242772,11.9,120.76,120.69,0.25]
[1644258242971,12.4292,120.75,120.65,12.4283]
[1644258243172,49.75565132,120.74,120.64,45.55195845]
[1644258243571,56.00565132,120.74,120.64,45.55195845]
[1644258244573,68.43585132,120.74,120.64,45.55195845]
[1644258244773,70.58267989,120.74,120.64,45.55195845]
[1644258245373,71.75955561,120.74,120.64,45.55195845]
[1644258246274,70.58267989,120.74,120.64,45.80195845]
[1644258246675,71.75955561,120.74,120.64,45.80195845]
[1644258246877,71.75955561,120.74,120.64,0.25]
[1644258247075,71.75955561,120.74,120.63,0.024]
[1644258247275,75.90255561,120.74,120.63,0.024]
[1644258247478,1.17687572,120.73,120.63,0.024]
[1644258247676,12.4329,120.71,120.63,0.024]
[1644258247877,58.45018082,120.7,120.61,39.0868238]
[1644258248077,64.45018082,120.7,120.61,39.1108238]
[1644258248276,64.45018082,120.7,120.62,0.024]
[1644258248981,2.14682857,120.69,120.61,0.024]
[1644258249183,11.9,120.68,120.61,0.024]
[1644258249381,160.64,120.68,120.58,0.024]
[1644258249580,2.14682857,120.67,120.58,0.024]
[1644258249780,11.9,120.66,120.58,44.77974312]
[1644258250083,17.9,120.66,120.59,0.024]
[1644258250280,17.9,120.66,120.58,44.77974312]
[1644258250681,17.9,120.66,120.58,50.77974312]
[1644258250881,18.15,120.66,120.58,50.77974312]
[1644258251082,55.2243904,120.66,120.58,45.02974312]
[1644258251282,67.6622904,120.66,120.58,45.02974312]
[1644258251584,67.6622904,120.66,120.58,0.024]
[1644258254381,67.6622904,120.66,120.58,30.82035145]
[1644258254784,67.6622904,120.66,120.58,0.024]
[1644258256183,30.3379,120.66,120.58,0.024]
[1644258256383,17.9,120.66,120.58,0.024]
[1644258257184,40.46964733,120.65,120.58,0.024]
[1644258257483,41.9390099,120.63,120.57,35.79172056]
[1644258257684,59.8390099,120.63,120.57,0.5912585]
[1644258258085,60.0890099,120.63,120.57,0.5912585]
[1644258258685,60.0890099,120.63,120.57,36.93585572]
[1644258258886,18.15,120.63,120.57,36.93585572]
[1644258259087,18.15,120.63,120.57,37.18585572]
[1644258259686,6.0,120.63,120.57,37.18585572]
[1644258260089,17.9,120.65,120.57,37.18585572]
[1644258260290,40.06070563,120.64,120.57,49.62365572]
[1644258260688,46.06070563,120.64,120.57,49.62365572]
[1644258260889,6.0,120.64,120.57,49.62365572]
[1644258261291,55.0133,120.66,120.57,49.62365572]
[1644258261489,55.0133,120.66,120.58,0.024]
[1644258261689,55.2633,120.66,120.58,0.024]
[1644258261888,92.94427099,120.66,120.58,0.024]
[1644258262890,92.94427099,120.66,120.58,12.4612]
[1644258263095,92.94427099,120.66,120.59,31.6306736]
[1644258263291,55.2633,120.66,120.59,31.9046736]
[1644258264092,42.8253,120.66,120.59,31.9046736]
[1644258264292,45.64613733,120.65,120.59,31.6546736]
[1644258264496,45.64613733,120.65,120.59,31.8806736]
[1644258264694,6.25,120.65,120.59,31.8806736]
[1644258265091,0.25,120.65,120.59,31.8806736]
[1644258265292,6.0,120.65,120.59,31.8806736]
[1644258265695,6.25,120.65,120.59,31.8806736]
[1644258265892,0.25,120.65,120.59,31.8806736]
[1644258266095,6.0,120.65,120.59,31.8806736]
[1644258266294,6.0,120.65,120.59,44.3168736]
[1644258266695,54.876,120.68,120.59,44.3168736]
[1644258266895,101.1754256,120.68,120.6,0.024]
[1644258267395,42.4393,120.68,120.6,12.4592]
[1644258267595,42.4393,120.68,120.6,12.4352]
[1644258267796,42.4393,120.68,120.6,12.6852]
[1644258267996,42.4393,120.68,120.6,12.7092]
[1644258268200,6.0,120.68,120.61,36.34459722]
[1644258268399,6.0,120.68,120.62,12.4332]
[1644258268597,29.0628,120.69,120.63,31.6306736]
[1644258268798,29.0628,120.69,120.63,31.8806736]
[1644258268799,6.0,120.69,120.63,31.8806736]
[1644258269223,42.7387,120.72,120.63,31.8806736]
[1644258269399,55.1705,120.72,120.63,44.3125736]
[1644258269798,48.79806647,120.71,120.63,44.3125736]
[1644258270198,54.79806647,120.71,120.63,44.3125736]
[1644258270800,55.04806647,120.71,120.63,44.3125736]
[1644258271701,54.79806647,120.71,120.63,44.3125736]
[1644258271897,67.23086647,120.71,120.63,46.26337912]
[1644258272098,67.23086647,120.71,120.63,44.3125736]
[1644258272402,67.48086647,120.71,120.63,44.3125736]
[1644258278207,18.6828,120.71,120.63,44.3125736]
[1644258278404,6.25,120.71,120.63,44.3125736]
[1644258278606,12.15,120.71,120.63,44.3125736]
[1644258278808,18.15,120.71,120.63,44.3125736]
[1644258279607,17.9,120.71,120.63,44.3125736]
[1644258280408,42.71104208,120.7,120.63,44.3125736]
[1644258280607,6.0,120.7,120.63,44.3125736]
[1644258280809,6.0,120.7,120.63,44.0625736]
[1644258281413,6.0,120.71,120.63,44.0625736]
[1644258281609,36.50180847,120.7,120.63,44.0625736]
[1644258281815,36.75180847,120.7,120.63,44.0625736]
[1644258282011,42.75180847,120.7,120.63,44.0625736]
[1644258283310,6.25,120.7,120.63,44.0625736]
[1644258283512,0.25,120.7,120.63,44.0625736]
[1644258283710,6.0,120.7,120.63,44.0625736]
[1644258284113,0.25,120.71,120.63,44.0625736]
[1644258284329,81.8228738,120.72,120.63,44.3125736]
[1644258284930,94.2544738,120.72,120.63,44.3125736]
[1644258285829,94.5044738,120.72,120.63,44.3125736]
[1644258289735,94.5044738,120.72,120.61,12.4579]
[1644258289935,97.82817809,120.72,120.61,0.024]
[1644258290138,12.4373,120.68,120.61,0.024]
[1644258290339,12.6873,120.68,120.61,0.024]
[1644258290536,30.5873,120.68,120.61,0.024]
[1644258290737,65.65915851,120.68,120.61,0.024]
[1644258291340,30.5873,120.68,120.61,0.024]
[1644258291537,18.15,120.68,120.61,0.024]
[1644258292137,17.9,120.68,120.61,12.4587]
[1644258292340,17.9,120.68,120.61,12.7087]
[1644258292638,17.9,120.68,120.62,31.61242829]
[1644258292838,17.9,120.68,120.62,31.86242829]
[1644258292839,6.0,120.68,120.62,31.86242829]
[1644258293139,29.9948,120.71,120.62,50.29572829]
[1644258293341,24.8387,120.72,120.62,52.24653381]
[1644258293738,46.09412709,120.71,120.62,52.24653381]
[1644258294138,52.09412709,120.71,120.62,52.24653381]
[1644258294641,52.09412709,120.71,120.62,50.29572829]
[1644258294839,52.09412709,120.71,120.62,44.29572829]
[1644258295238,52.34412709,120.71,120.62,44.29572829]
[1644258296740,52.09412709,120.71,120.62,44.29572829]
[1644258296941,52.34412709,120.71,120.62,44.29572829]
[1644258297938,64.77642709,120.71,120.62,44.29572829]
[1644258298141,65.95330281,120.71,120.62,44.29572829]
[1644258299041,64.77642709,120.71,120.62,44.29572829]
[1644258299442,64.52642709,120.71,120.62,44.29572829]
[1644258300242,65.70330281,120.71,120.62,44.29572829]
[1644258300739,65.95330281,120.71,120.62,44.29572829]
[1644258301543,1.17687572,120.72,120.62,52.24653381]
[1644258301746,1.17687572,120.73,120.62,90.80553381]
[1644258301946,0.03697077,120.74,120.63,1.17278405]
[1644258301947,1.21384649,120.74,120.63,1.17278405]
[1644258302145,1.21384649,120.75,120.66,12.4295]
[1644258302454,0.03697077,120.73,120.67,36.36284253]
[1644258302643,35.57344387,120.74,120.66,0.25]
[1644258302843,0.03697077,120.73,120.66,0.25]
[1644258303043,41.61041464,120.74,120.63,1.17278405]
[1644258303246,41.61041464,120.74,120.67,12.428]
[1644258303445,41.57344387,120.74,120.67,12.428]
[1644258303645,41.82344387,120.74,120.67,12.428]
[1644258304045,54.25274387,120.74,120.67,12.428]
[1644258304246,54.25274387,120.74,120.67,34.24214727]
[1644258304745,41.82344387,120.74,120.67,34.24214727]
[1644258305247,41.82344387,120.74,120.67,34.49214727]
[1644258305445,54.25294387,120.74,120.64,41.4277]
[1644258305646,2.18379934,120.73,120.63,25.35948405]
[1644258305846,11.9,120.72,120.63,24.1867]
[1644258306048,14.04682857,120.72,120.61,24.94828405]
[1644258306251,20.29682857,120.72,120.61,24.94828405]
[1644258306447,47.52415149,120.71,120.62,38.31081575]
[1644258306647,11.9,120.7,120.62,38.31081575]
[1644258306846,34.72453228,120.69,120.62,38.31081575]
[1644258307050,30.5834,120.7,120.62,50.74421575]
[1644258307248,6.0,120.69,120.62,50.74421575]
[1644258307748,6.25,120.69,120.62,50.74421575]
[1644258307948,48.15481824,120.69,120.62,50.99421575]
[1644258308149,66.58921824,120.69,120.62,0.25]
[1644258308348,66.58921824,120.69,120.61,24.0255]
[1644258308550,66.58921824,120.69,120.61,0.274]
[1644258308849,66.58921824,120.69,120.61,0.024]
[1644258309050,40.25699552,120.67,120.61,0.024]
[1644258309249,40.50699552,120.67,120.6,59.89197551]
[1644258309652,46.50699552,120.67,120.6,59.89197551]
[1644258311448,46.50699552,120.67,120.6,12.6854]
[1644258311650,58.94339552,120.67,120.6,12.6854]
[1644258312152,58.94339552,120.67,120.59,0.024]
[1644258312350,70.84339552,120.67,120.59,0.024]
[1644258312549,70.84339552,120.67,120.59,39.95425115]
[1644258313152,70.84339552,120.67,120.59,0.024]
[1644258313351,72.99022409,120.67,120.58,0.024]
[1644258313854,94.05079552,120.67,120.58,0.024]
[1644258314254,96.19762409,120.67,120.58,0.024]
[1644258314656,5.32087572,120.66,120.58,0.024]
[1644258314853,12.4448,120.64,120.58,0.024]
[1644258315054,11.9,120.63,120.57,0.5912585]
[1644258315252,36.1435,120.63,120.57,0.5912585]
[1644258315452,45.42048674,120.62,120.57,0.5912585]
[1644258315655,11.9,120.61,120.57,0.5912585]
[1644258315854,41.75110268,120.6,120.57,0.09267896]
[1644258316253,41.75110268,120.6,120.53,0.024]
[1644258316254,59.90110268,120.6,120.53,0.024]
[1644258316558,62.04793125,120.6,120.53,0.024]
[1644258316755,85.97253125,120.6,120.52,0.024]
[1644258316952,42.0746,120.6,120.52,36.4478206]
[1644258317153,41.8246,120.6,120.52,36.4478206]
[1644258317357,41.8246,120.6,120.52,0.024]
[1644258318155,54.2693,120.6,120.52,0.024]
[1644258318355,54.2693,120.6,120.52,38.6282626]
[1644258318356,17.9,120.6,120.52,38.6282626]
[1644258318656,17.9,120.6,120.52,42.7752626]
[1644258318956,37.9620043,120.59,120.52,43.0252626]
[1644258319154,43.9620043,120.59,120.52,55.4692626]
[1644258319357,6.0,120.59,120.52,55.4692626]
[1644258319858,17.9,120.6,120.52,55.4692626]
[1644258320056,17.9,120.6,120.52,4.171]
[1644258320258,17.9,120.6,120.52,4.421]
[1644258320658,18.15,120.6,120.52,4.421]
[1644258320859,30.5949,120.6,120.52,4.171]
[1644258321159,68.94983856,120.6,120.53,46.59355185]
[1644258321359,68.94983856,120.6,120.53,46.61755185]
[1644258321559,68.94983856,120.6,120.53,0.024]
[1644258321758,68.94983856,120.6,120.52,4.171]
[1644258321959,68.94983856,120.6,120.52,16.615]
[1644258322371,68.94983856,120.6,120.52,16.865]
[1644258322560,68.94983856,120.6,120.52,43.38130184]
[1644258322960,68.94983856,120.6,120.52,39.23430184]
[1644258324259,68.94983856,120.6,120.52,0.024]
[1644258324460,104.19463856,120.6,120.52,0.024]
[1644258324661,104.19463856,120.6,120.5,0.024]
[1644258325489,2.14682857,120.59,120.5,0.024]
[1644258325666,12.4499,120.57,120.5,0.024]
[1644258325864,24.5999,120.57,120.49,0.96072754]
[1644258326065,18.15,120.57,120.5,1.94586347]
[1644258326265,36.15685983,120.56,120.5,45.22084134]
[1644258326465,36.15685983,120.56,120.5,0.024]
[1644258326667,54.85615983,120.56,120.49,0.96072754]
[1644258327067,11.9,120.55,120.49,0.96072754]
[1644258327268,12.15,120.55,120.49,0.98472754]
[1644258327470,36.78201927,120.54,120.49,26.16532263]
[1644258327670,11.9,120.55,120.49,26.41532263]
[1644258327868,18.15,120.55,120.49,26.41532263]
[1644258328369,18.15,120.55,120.49,0.98472754]
[1644258328869,30.6005,120.55,120.49,0.98472754]
[1644258329269,30.6005,120.55,120.49,0.96072754]
[1644258329469,42.43061081,120.54,120.49,0.96072754]
[1644258329671,60.33061081,120.54,120.49,0.96072754]
[1644258329873,60.58061081,120.54,120.49,23.60328727]
[1644258330172,12.15,120.54,120.49,0.96072754]
[1644258330374,30.6013,120.54,120.49,0.96072754]
[1644258331373,49.57738155,120.53,120.49,0.96072754]
[1644258331577,55.57738155,120.53,120.49,0.96072754]
[1644258331775,55.82738155,120.53,120.49,0.96072754]
[1644258332171,55.82738155,120.53,120.47,0.024]
[1644258332372,55.82738155,120.53,120.46,43.06483131]
[1644258332572,43.37478155,120.53,120.46,43.08883131]
[1644258333197,43.37478155,120.53,120.46,6.274]
[1644258333693,43.37478155,120.53,120.46,6.024]
[1644258333894,43.37478155,120.53,120.46,6.274]
[1644258334293,43.37478155,120.53,120.46,40.03718642]
[1644258334494,43.37478155,120.53,120.46,46.03718642]
[1644258336498,43.37478155,120.53,120.46,45.78718642]
[1644258336701,43.37478155,120.53,120.46,6.024]
[1644258336898,27.9359,120.53,120.46,6.0]
[1644258337102,15.483,120.53,120.46,0.25]
[1644258337297,15.233,120.53,120.46,0.25]
[1644258337900,6.0,120.53,120.46,0.25]
[1644258338098,57.77521223,120.54,120.46,0.25]
[1644258338399,17.9,120.54,120.46,0.024]
[1644258338700,18.15,120.54,120.46,0.024]
[1644258338900,17.9,120.54,120.46,0.024]
[1644258339101,17.9,120.54,120.46,12.4739]
[1644258339400,17.9,120.54,120.47,26.2872649]
[1644258339401,65.91363676,120.54,120.47,26.2872649]
[1644258339599,17.9,120.54,120.47,26.3112649]
[1644258339802,17.9,120.54,120.47,26.5612649]
[1644258340804,18.15,120.54,120.47,26.5612649]
[1644258341608,18.15,120.54,120.47,39.0103649]
[1644258342707,12.15,120.54,120.47,39.0103649]
[1644258344409,43.62184766,120.53,120.47,39.0103649]
[1644258344818,43.62184766,120.53,120.47,12.7231]
[1644258345011,43.62184766,120.53,120.47,0.024]
[1644258345212,11.9,120.52,120.45,42.99358405]
[1644258345421,11.9,120.52,120.45,6.024]
[1644258345612,18.15,120.52,120.45,6.024]
[1644258345814,18.15,120.52,120.45,37.89847029]
[1644258346014,48.08110953,120.51,120.45,6.024]
[1644258346212,48.33110953,120.51,120.45,6.0]
[1644258346414,54.33110953,120.51,120.45,6.0]
[1644258346616,54.33110953,120.51,120.44,10.173]
[1644258346813,54.08110953,120.51,120.44,1.44678405]
[1644258347013,54.33110953,120.51,120.44,6.274]
[1644258347213,54.33110953,120.51,120.44,18.7262]
[1644258347413,54.33110953,120.51,120.44,6.274]
[1644258347612,54.33110953,120.51,120.44,0.274]
[1644258347814,11.9,120.5,120.44,6.024]
[1644258348019,11.9,120.5,120.44,6.0]
[1644258348215,40.63573762,120.49,120.44,6.25]
[1644258348415,40.63573762,120.49,120.44,0.25]
[1644258348615,46.88573762,120.49,120.44,6.25]
[1644258348814,46.88573762,120.49,120.44,0.25]
[1644258349219,46.88573762,120.49,120.43,0.52765922]
[1644258349415,46.88573762,120.49,120.43,0.50365922]
[1644258349616,46.88573762,120.49,120.43,0.25365922]
[1644258353125,58.78573762,120.49,120.43,0.25365922]
[1644258353725,52.78573762,120.49,120.43,0.25365922]
[1644258355231,58.78573762,120.49,120.43,0.25365922]
[1644258356529,71.24303762,120.49,120.43,0.25365922]
[1644258356730,73.38986619,120.49,120.43,0.25365922]
[1644258356929,118.0,120.48,120.43,0.25365922]
[1644258357130,11.9,120.47,120.43,0.25365922]
[1644258357332,14.29682857,120.47,120.43,0.25365922]
[1644258357532,141.14682857,120.46,120.38,0.024]
[1644258357734,11.9,120.45,120.38,0.024]
[1644258357935,102.0,120.43,120.33,1.63865191]
[1644258358134,11.9,120.42,120.33,0.5266425]
[1644258358337,46.1364152,120.41,120.33,41.74549572]
[1644258358535,11.9,120.4,120.33,0.5266425]
[1644258358736,11.9,120.4,120.33,6.5266425]
[1644258358939,17.9,120.4,120.33,12.9905425]
[1644258359136,17.9,120.4,120.33,18.9905425]
[1644258359563,17.9,120.4,120.34,34.69596636]
[1644258359763,17.9,120.4,120.34,34.94596636]
[1644258359963,17.9,120.4,120.34,40.94596636]
[1644258360262,18.15,120.4,120.34,40.94596636]
[1644258360666,18.15,120.4,120.33,0.5266425]
[1644258361062,17.9,120.4,120.33,0.5266425]
[1644258361263,6.0,120.4,120.33,2.47258879]